[Event "Women Accentus DAQ Blitz 2022"]
[Site "Biel"]
[Date "2022.07.17"]
[Round "11.2"]
[White "Moracchini, Margaux"]
[Black "Tamrazyan, Gohar"]
[Result "1/2-1/2"]
[ECO "B22"]
[WhiteElo "1937"]
[BlackElo "1916"]
[Annotator "TA"]
[PlyCount "129"]
[EventDate "2022.07.17"]
[EventType "tourn"]
[EventCountry "SUI"]
[SourceTitle "playchess.com"]
[Source "ChessBase"]
[SourceQuality "1"]
[TimeControl "180+2"]

{[%evp 21,129,0,27,31,29,-14,0,0,20,0,22,18,25,25,24,10,37,89,67,50,37,54,132,0,0,-16,95,91,99,104,86,80,262,189,166,87,82,79,75,79,192,162,346,52,171,170,314,168,143,84,81,98,164,163,29988,12,15,11,20,0,26,18,105,0,0,0,0,0,0,0,0,0,0,0,0,0,0,0,73,0,79,10,194,49,75,0,0,0,63,0,0,0,0,0,0,0,0,0,12847,0,27999,27999,27999,27999,27996,27996,27998,27998,27999,27999]} 1. e4 {[%emt 0:00:01]} c5 {[%emt 0:00:00]} 2. c3 {[%emt 0:00:01]} d5 {[%emt 0:00:01]} 3. exd5 {[%emt 0:00:04]} Qxd5 {[%emt 0:00:01]} 4. d4 {[%emt 0:00:01]} Nc6 {[%emt 0:00:01]} 5. Nf3 {[%emt 0:00:01]} Bg4 {[%emt 0:00:01]} 6. Be2 {[%emt 0:00:20]} cxd4 {[%emt 0:00:01]} 7. cxd4 {[%emt 0:00:22]} e6 {[%emt 0:00:14]} 8. Nc3 {[%emt 0:00:07]} Qa5 {[%emt 0:00:01]} 9. O-O {[%emt 0:00:04]} Nf6 {[%emt 0:00:01]} 10. h3 {[%emt 0:00:04]} Bh5 {[%emt 0:00:05]} 11. Be3 {[%emt 0:00:05]} Be7 {[%emt 0:00:14]} 12. Qb3 {[%emt 0:00:05] B22: Sicilian: 2 c3.} Qb4 {[%emt 0:00:08]} 13. Qc2 {[%emt 0:00:25]} O-O {[%emt 0:00:13]} 14. a3 {[%emt 0:00:01] The position is equal.} Qa5 {[%emt 0:00:25]} 15. b4 {[%emt 0:00:13]} Qd8 {[%emt 0:00:31]} 16. Rfd1 {[%emt 0:00:10][%cal Od4d5]} Nd5 {[%emt 0:00:02]} 17. Nxd5 {[%emt 0:00:14] [#]} Qxd5 $146 {[%emt 0:00:03]} ({Predecessor:} 17... exd5 18. Ne5 Bxe2 19. Qxe2 Rc8 20. Qb5 f6 21. Nd3 Rc7 22. Nf4 a6 23. Qxd5+ Qxd5 24. Nxd5 {1-0 (34) Ljubicic,F (2406)-Hofbauer,K (2009) Pula 2009}) 18. Bc4 {[%emt 0:00:03]} Qd6 {[%emt 0:00:16]} ({Don't take} 18... Bg6 19. Qb3 Qf5 20. d5 exd5 21. Bxd5 $14 (21. Rxd5 Qc8 $14)) 19. d5 $36 {[%emt 0:00:28][%mdl 2048] Keeping Black busy.} Bxf3 {[%emt 0:00:15]} 20. gxf3 {[%emt 0:00:00]} Ne5 {[%emt 0:00:07]} 21. dxe6 {[%emt 0:00:04]} Nxf3+ {[%emt 0:00:09]} (21... Qc6 $1 $14 22. exf7+ Kh8) 22. Kg2 {[%emt 0:00:01] Active counter play!} (22. Kf1 $1 $16 Qc6 23. exf7+ Kh8 24. Bb3) 22... Nh4+ $11 {[%emt 0:00:07]} (22... Qh2+ $2 23. Kxf3 fxe6+ 24. Ke2 $18) 23. Kf1 {[%emt 0:00:02]} Qh2 {[%emt 0:00:04]} (23... Qc6 $1 $11 24. exf7+ Kh8) 24. exf7+ $16 {[%emt 0:00:02]} ({And not} 24. Qe4 f5 25. Qxb7 f4 $17) 24... Kh8 {[%emt 0:00:02] aiming for ...Qh1+.} (24... Rxf7 $2 25. Bxf7+ Kxf7 26. Qc4+ (26. Qxh7 Qxh3+ 27. Ke2 Qf3+ 28. Kf1 Qh1+ 29. Ke2 Qf3+ 30. Kf1 Nf5 $15) 26... Kf8 27. Qg4 $18) 25. Qe4 {[%emt 0:00:08][%csl LRb7,LRe7] Inhibits Qh1+.} Qxh3+ {[%emt 0:00:05]} 26. Ke2 {[%emt 0:00:04]} Bf6 $2 {[%emt 0:00:05]} (26... Nf5 $16) 27. Rh1 {[%emt 0:00:04]} Qf5 {[%emt 0:00:13] [#]} 28. Qxf5 {[%emt 0:00:15] Really sharp!} (28. Rxh4 $1 $18 Qxe4 29. Rxe4 Bxa1 30. Bc5) 28... Nxf5 {[%emt 0:00:01]} 29. Rad1 {[%emt 0:00:03]} Nxe3 {[%emt 0:00:03]} 30. fxe3 {[%emt 0:00:01]} a6 {[%emt 0:00:06]} (30... g6 $16) 31. Rd7 {[%emt 0:00:02]} b5 $2 {[%emt 0:00:02]} (31... g6 32. Rxb7 Kg7) 32. Bb3 $2 {[%emt 0:00:03]} (32. Bd3 $18 {[%csl Gd3][%cal Rh1h7]} h6 33. Bg6) 32... h6 {[%emt 0:00:01]} ({Black should try} 32... g6 $1 $14) 33. Rhd1 {[%emt 0:00:06] R1d6 is the strong threat.} Kh7 {[%emt 0:00:03]} (33... g5 {might work better.} 34. Kf3 Kg7) 34. Bc2+ {[%emt 0:00:01]} (34. R1d6 $142) 34... g6 $18 {[%emt 0:00:01]} 35. R1d6 {[%emt 0:00:03]} (35. Rg1 $142 $1 Bg5 36. Rd6) 35... Kg7 $16 {[%emt 0:00:01]} 36. Bb3 {[%emt 0:00:06]} g5 {[%emt 0:00:05]} (36... h5 $16 {was called for.}) 37. Rc6 $18 {[%emt 0:00:05]} Rfd8 $2 {[%emt 0:00:10]} (37... Rad8 $18 38. Rb7 Rb8) 38. Rdd6 $2 {[%emt 0:00:01]} (38. f8=Q+ {mates} Kxf8 39. Rxf6+ Ke8 40. Rg7 Rd2+ 41. Kxd2 Rd8+ 42. Ke2 Rd7 43. Rg8+ Ke7 44. Re6+ Kf7 45. Rxh6+ Ke7 46. Be6) 38... Rxd6 $11 {[%emt 0:00:03]} 39. Rxd6 {[%emt 0:00:01][%mdl 4096] Endgame KRB-KRB} Be7 {[%emt 0:00:03]} 40. Rc6 {[%emt 0:00:04]} Bf8 {[%emt 0:00:02]} 41. Kf3 {[%emt 0:00:05]} a5 {[%emt 0:00:00] [#]} (41... Rd8 $11) 42. Rb6 {[%emt 0:00:10]} ({White has to play} 42. Kg4 $1 $16 {[%cal Rg4h5] Strongly threatening Kh5.} a4 43. Bd5) 42... axb4 {[%emt 0:00:04]} 43. axb4 {[%emt 0:00:00]} Bxb4 {[%emt 0:00:08]} 44. Rxb5 {[%emt 0:00:01]} Bf8 {[%emt 0:00:01]} 45. Bd5 {[%emt 0:00:02]} Ra3 {[%emt 0:00:03]} 46. Rb7 {[%emt 0:00:04]} Bc5 {[%emt 0:00:02]} 47. Rb3 {[%emt 0:00:04]} Ra7 {[%emt 0:00:04]} 48. Kg4 {[%emt 0:00:02]} Re7 {[%emt 0:00:01]} 49. e4 {[%emt 0:00:01] Hoping for Rb8.} Rd7 {[%emt 0:00:06] [#]} (49... Ra7 $11) 50. Rf3 {[%emt 0:00:03]} (50. Rb5 $1 $16 {[%cal Rb5c5]} Be7 51. Kf5) 50... Kf8 {[%emt 0:00:02]} (50... Bf8 $11) 51. Kh5 {[%emt 0:00:00]} (51. Rc3 $16 Be7 52. Rc8+ Rd8 53. Rc7) 51... Rd6 $2 {[%emt 0:00:01]} (51... Kg7 $1 $11 {and Black has nothing to worry.}) 52. Rf5 {[%emt 0:00:02]} (52. Rc3 $18 Bb6 53. Rc8+ Rd8 54. Rc6) 52... Ra6 $14 {[%emt 0:00:00]} 53. Rf3 {[%emt 0:00:02]} ({White should play} 53. e5 $16) 53... Be7 {[%emt 0:00:01]} 54. Kg4 {[%emt 0:00:01]} Rg6 {[%emt 0:00:01]} ({Better is} 54... Rf6 $11) 55. Rf5 {[%emt 0:00:04]} (55. Rb3 $14 Kg7 56. Rb8) 55... Rf6 $11 {[%emt 0:00:01]} 56. Rxf6 {[%emt 0:00:01]} Bxf6 {[%emt 0:00:01] KB-KB} 57. Kh5 {[%emt 0:00:01]} Ke7 {[%emt 0:00:01]} 58. Kxh6 {[%emt 0:00:02]} g4 {[%emt 0:00:01]} 59. Kh7 {[%emt 0:00:07]} g3 $2 {[%emt 0:00:01][%mdl 8192]} (59... Kf8 $11) 60. e5 $2 {[%emt 0:00:01]} ({Only move:} 60. Kg8 $18 Kd6 61. f8=Q+ Ke5 62. Qb8+ Kd4 63. Qb6+ Ke5 64. Qb2+ Kf4 65. Qxf6+ Ke3 66. Qc3+ Ke2 67. Be6) 60... Bxe5 $2 {[%emt 0:00:03][%mdl 8192]} (60... g2 $11 61. exf6+ Kf8 62. Bxg2 Kxf7) 61. Kg8 {[%emt 0:00:00] White mates.} g2 {[%emt 0:00:06]} 62. Bxg2 {[%emt 0:00:01]} Bd6 {[%emt 0:00:01]} 63. f8=Q+ {[%emt 0:00:03]} Ke6 {[%emt 0:00:01]} 64. Qf7+ {[%emt 0:00:01]} Ke5 {[%emt 0:00:01]} 65. Qd5+ {[%emt 0:00:01][%mdl 32768] Weighted Error Value: White=0.60/Black=0.69. An unexpected result.} 1/2-1/2

[Event "Women Accentus DAQ Blitz 2022"]
[Site "Biel"]
[Date "2022.07.17"]
[Round "11.3"]
[White "Sumarriva Paulin, Laura"]
[Black "Zhuang, Yongzhe"]
[Result "1-0"]
[ECO "C54"]
[WhiteElo "1913"]
[BlackElo "1838"]
[Annotator "TA"]
[PlyCount "119"]
[EventDate "2022.07.17"]
[EventType "tourn"]
[EventCountry "SUI"]
[SourceTitle "playchess.com"]
[Source "ChessBase"]
[SourceQuality "1"]
[TimeControl "180+2"]

{[%evp 16,119,31,14,10,34,34,33,47,40,48,-4,55,0,166,160,152,168,416,39,37,33,233,0,0,0,0,-11,-37,-10,118,103,96,98,216,75,67,72,60,57,87,75,83,0,12,0,0,0,0,0,0,0,0,-4,75,-8,-21,-28,-12,-52,16,0,348,325,557,548,2745,2387,1736,0,1380,0,0,0,0,0,0,0,12829,12829,12827,1076,12841,12842,12844,12843,12844,12844,12847,12845,12848,12846,12846,12847,12848,12847,12850,12849,12850,12848,12849,12847,12848,0,12850,27998]} 1. e4 {[%emt 0:00:03]} e5 {[%emt 0:00:01]} 2. Bc4 {[%emt 0:00:02]} Nf6 {[%emt 0:00:02]} 3. d3 {[%emt 0:00:01]} Nc6 {[%emt 0:00:02]} 4. Nf3 {[%emt 0:00:01]} Bc5 {[%emt 0:00:02]} 5. c3 {[%emt 0:00:02]} d6 {[%emt 0:00:05]} 6. b4 {[%emt 0:00:03]} Bb6 {[%emt 0:00:02]} 7. a4 {[%emt 0:00:01]} a6 {[%emt 0:00:01]} 8. O-O {[%emt 0:00:06]} O-O {[%emt 0:00:04]} 9. Bg5 {[%emt 0:00:03]} h6 {[%emt 0:00:02] C54: Giuoco Piano: 4 c3 Nf6, main lines with 5 d4 and 5 d3.} 10. Bh4 {[%emt 0:00:01]} Re8 {[%emt 0:00:18]} 11. Nbd2 {[%emt 0:00:21]} Be6 {[%emt 0:00:07] White is slightly better.} 12. Re1 {[%emt 0:00:04]} Qe7 {[%emt 0:00:31]} 13. Nf1 {[%emt 0:00:16] [#]} (13. Rb1 $14) 13... Rad8 $146 {[%emt 0:00:09]} (13... Bxc4 $11 14. dxc4 g5) ({Predecessor:} 13... Bxc4 14. dxc4 Qe6 15. Qd3 Nh5 16. Bg3 Nf4 17. Bxf4 exf4 18. N1d2 g5 19. a5 Ba7 {1-0 (72) Eken,A (1748)-Inel,C (1593) Konya 2018}) 14. Ng3 {[%emt 0:00:07]} (14. a5 $14 Ba7 15. Qd2) 14... g5 $2 {[%emt 0:00:13] [#]} (14... Bxc4 $1 $11 {and Black has nothing to worry.} 15. dxc4 Qe6) 15. Nxg5 $1 $18 {[%emt 0:00:04][%mdl 512]} hxg5 {[%emt 0:00:02]} (15... Bxf2+ 16. Kxf2) 16. Bxg5 {[%emt 0:00:01]} Bxc4 $2 {[%emt 0:00:10]} (16... Bxf2+ {is a better defense.} 17. Kxf2 Ng4+ 18. Qxg4 Bxg4 19. Bxe7 Nxe7) 17. dxc4 $2 {[%emt 0:00:42]} (17. Qf3 $18 Qf8 18. Bxf6 (18. dxc4 Nh7 $16)) 17... Qe6 $14 {[%emt 0:00:35]} 18. Qf3 {[%emt 0:00:03]} Ng4 {[%emt 0:00:18]} (18... Nh7 $1 $14 19. Bxd8 Nxd8) 19. Bxd8 $2 {[%emt 0:00:15]} ({White has to play} 19. c5 $1 $18 {[%cal Rc5b6]} dxc5 20. Nf5 Nxf2 21. Bxd8 Rxd8 22. a5 (22. Qxf2 cxb4 23. Ne3 Rd3 $15)) 19... Bxf2+ $11 {[%emt 0:00:07]} (19... Nxd8 $2 20. c5 dxc5 21. a5 $18) 20. Kh1 {[%emt 0:00:01]} Bxe1 {[%emt 0:00:05]} (20... Nxd8 21. Nf5 $1 Bxe1 22. Qxg4+ Qg6 23. Rxe1 $1 Qxg4 24. Nh6+ Kg7 25. Nxg4 $16) (20... Rxd8 21. Rf1 Bxg3 22. Qxg3 $14) 21. Rxe1 {[%emt 0:00:14]} (21. Nf5 $5) 21... Rxd8 {[%emt 0:00:08]} 22. Nf5 {[%emt 0:00:03] Black must now prevent b5.} Qg6 {[%emt 0:00:06]} (22... Nf6 $1 $11 {keeps the balance.} 23. Qg3+ Kf8 24. Qg7+ Ke8) 23. b5 $1 $36 {[%emt 0:00:04][%mdl 2048] White is in control.} Qh5 {[%emt 0:00:11][%csl Gg4][%cal Rh5h2]} 24. h3 {[%emt 0:00:13]} ({Of course not} 24. Qxg4+ Qxg4 25. Nh6+ Kf8 26. Nxg4 Na5 $11) 24... Nf6 {[%emt 0:00:10]} 25. Qxh5 {[%emt 0:00:10]} ({Not} 25. bxc6 Qxf3 26. gxf3 bxc6 $14) (25. Qg3+ $1 $18 {has better winning chances.} Qg6 26. Qh4 (26. bxc6 Qxg3 27. Nxg3 bxc6 $15)) 25... Nxh5 {[%emt 0:00:01]} 26. bxc6 {[%emt 0:00:01]} bxc6 $18 {[%emt 0:00:01][%mdl 4096] Endgame KRN-KRN} 27. Ne7+ {[%emt 0:00:02]} Kg7 {[%emt 0:00:03]} 28. Nxc6 {[%emt 0:00:01]} Rh8 {[%emt 0:00:05]} 29. Ne7 {[%emt 0:00:05] White is more active.} (29. a5 $16) 29... Nf4 {[%emt 0:00:02]} 30. Nf5+ {[%emt 0:00:12]} Kf6 {[%emt 0:00:02]} 31. Rb1 {[%emt 0:00:05]} Nd3 {[%emt 0:00:03]} 32. Rb7 {[%emt 0:00:08]} Rc8 {[%emt 0:00:02]} 33. Ne3 {[%emt 0:00:08]} Nc5 {[%emt 0:00:02][%csl LRa4,LRb7,LRe4]} 34. Nd5+ {[%emt 0:00:03]} Ke6 {[%emt 0:00:02]} (34... Kg5 $11 35. Ra7 Nxa4) 35. Rxc7 {[%emt 0:00:02]} (35. Ra7 $1 $16) 35... Rxc7 $11 {[%emt 0:00:03]} 36. Nxc7+ $16 {[%emt 0:00:02] KN-KN} Kd7 {[%emt 0:00:01]} 37. Nd5 {[%emt 0:00:02]} Nxe4 {[%emt 0:00:02]} ({Black should try} 37... Nxa4 $15 38. h4 Nc5) 38. h4 {[%emt 0:00:05]} Ng3+ $2 {[%emt 0:00:06][%mdl 8192]} (38... a5 $11 {and Black is okay.}) 39. Kh2 $18 {[%emt 0:00:02]} Nf5 {[%emt 0:00:03]} (39... Ne4 40. h5 Ke8 41. Nc7+ Ke7) 40. h5 {[%emt 0:00:03] And now g4 would win.} Kc6 {[%emt 0:00:06]} 41. g4 {[%emt 0:00:06]} Nh6 {[%emt 0:00:02]} 42. Ne7+ $2 {[%emt 0:00:03]} (42. g5 $18 Nf5 43. h6) 42... Kc5 $2 {[%emt 0:00:02][%mdl 8192]} (42... Kd7 $11 43. Nd5 Nxg4+ 44. Kg3 f5) 43. Nf5 $2 {[%emt 0:00:02]} (43. g5 $18) 43... Nxg4+ $11 {[%emt 0:00:01]} (43... Nxf5 44. gxf5 Kc6 45. h6 $18) 44. Kg3 {[%emt 0:00:01]} Nf6 {[%emt 0:00:03]} 45. h6 {[%emt 0:00:01] aiming for Ne3.} Kxc4 {[%emt 0:00:01]} 46. Ne3+ {[%emt 0:00:02]} Kxc3 $2 {[%emt 0:00:02][%mdl 8192] [#]} (46... Kd3 $11 47. Kf3 Nh7) 47. Nd5+ $1 $18 {[%emt 0:00:02][%mdl 576] Deflection, Promotion} Nxd5 {[%emt 0:00:02] KN-KPP} 48. h7 {[%emt 0:00:01]} e4 {[%emt 0:00:06]} 49. h8=Q+ {[%emt 0:00:01]} f6 {[%emt 0:00:01]} 50. Qc8+ {[%emt 0:00:04]} Kd4 {[%emt 0:00:01]} 51. Qxa6 {[%emt 0:00:04]} e3 {[%emt 0:00:02]} 52. Kf3 {[%emt 0:00:07]} f5 {[%emt 0:00:01]} 53. Qe2 {[%emt 0:00:03]} f4 {[%emt 0:00:02]} 54. Qb2+ {[%emt 0:00:03]} Kc5 {[%emt 0:00:02]} 55. a5 {[%emt 0:00:02]} Nb4 {[%emt 0:00:03]} 56. Qc3+ {[%emt 0:00:05]} Kb5 {[%emt 0:00:02]} 57. Qc7 {[%emt 0:00:04]} d5 {[%emt 0:00:04]} 58. Kxf4 {[%emt 0:00:02]} e2 {[%emt 0:00:01] [#]} 59. Qe7 $2 {[%emt 0:00:01]} ({Stronger than} 59. Qc3 e1=Q 60. Qxe1 Nd3+ 61. Kf5 Nxe1 $11) (59. Qb6+ $1 $18 Kc4 60. Qe3 Nd3+ 61. Kg3 e1=Q+ 62. Qxe1 Nxe1 63. a6) 59... Nc6 $2 {[%emt 0:00:03][%mdl 8192]} (59... Nd3+ $11 60. Kf5 e1=Q 61. Qxe1 Nxe1) 60. Qxe2+ {[%emt 0:00:02] Weighted Error Value: White=0.59/Black=0.66} 1-0

[Event "Women Accentus DAQ Blitz 2022"]
[Site "Biel"]
[Date "2022.07.17"]
[Round "12.1"]
[White "Cornileau, Juliette"]
[Black "Keymer, Cecilia"]
[Result "1/2-1/2"]
[ECO "D13"]
[WhiteElo "1900"]
[BlackElo "1652"]
[Annotator "TA"]
[PlyCount "74"]
[EventDate "2022.07.17"]
[EventType "tourn"]
[EventCountry "SUI"]
[SourceTitle "playchess.com"]
[Source "ChessBase"]
[SourceQuality "1"]
[TimeControl "180+2"]

{[%evp 11,74,10,26,7,37,-6,-6,-10,0,-31,-13,-37,-37,-90,-77,-88,-64,-65,-61,-125,-43,-31,-37,-22,-7,-41,0,-153,-156,-410,-418,-416,-404,-410,-402,-525,-360,-366,-358,-358,-357,-348,-342,-377,-323,-351,-314,-320,-162,-177,-127,-145,-98,-188,-193,-206,-191,-208,0,-217,0,-197,0,-208,0]} 1. d4 {[%emt 0:00:02]} d5 {[%emt 0:00:00]} 2. c4 {[%emt 0:00:01]} c6 {[%emt 0:00:01]} 3. Nc3 {[%emt 0:00:06]} Nf6 {[%emt 0:00:01]} 4. cxd5 {[%emt 0:00:05]} cxd5 {[%emt 0:00:01]} 5. Nf3 {[%emt 0:00:05]} Nc6 {[%emt 0:00:11]} 6. e3 {[%emt 0:00:04]} Bg4 {[%emt 0:00:05] 6...a6 is becoming the main line.} 7. h3 {[%emt 0:00:02] D13: Slav Defence: Exchange variation without ...Bf5.} (7. Qb3 $5 {[%cal Rb3b7]}) 7... Bh5 {[%emt 0:00:03]} (7... Bxf3 $5 8. Qxf3 e6 $11) 8. Be2 {[%emt 0:00:01]} e6 {[%emt 0:00:05]} 9. O-O {[%emt 0:00:01] The position is equal.} a6 {[%emt 0:00:06]} 10. Qb3 {[%emt 0:00:02]} (10. Ne5 $5 {[%cal Re2h5]} Bxe2 11. Nxe2 $11) 10... Qc7 {[%emt 0:00:06] [#]} 11. Na4 $146 {[%emt 0:00:19]} ({Predecessor:} 11. Bd2 Bd6 12. Rfc1 O-O 13. Na4 b5 14. Nc5 Bxc5 15. Rxc5 Ne4 16. Rc2 Bxf3 17. Bxf3 Nxd2 18. Rxd2 {0-1 (64) Mamedjarova,Z (2349)-L'Ami,E (2531) Wijk aan Zee 2005}) 11... Bd6 {[%emt 0:00:10]} 12. Nb6 {[%emt 0:00:12]} ({Better is} 12. Bd2 $15) 12... Rb8 $17 {[%emt 0:00:10]} 13. Na4 {[%emt 0:00:45]} O-O {[%emt 0:00:05]} 14. Bd2 {[%emt 0:00:13]} Ne4 {[%emt 0:00:07]} 15. Rfd1 {[%emt 0:00:33]} (15. Qd1 $15) 15... Nxd2 {[%emt 0:00:10]} (15... Qe7 $17 16. Qc2 f5) 16. Rxd2 $15 {[%emt 0:00:02]} Qe7 {[%emt 0:00:04]} 17. Rc1 {[%emt 0:00:24]} Rfc8 {[%emt 0:00:42]} 18. Rdc2 {[%emt 0:00:01]} Qd8 {[%emt 0:00:23]} 19. Nb6 $2 {[%emt 0:00:14] [#]} (19. Rc3 $11) 19... Rc7 $1 $17 {[%emt 0:00:03] ...Na5 is the strong threat.} 20. a3 $2 {[%emt 0:00:04]} (20. Na4 $17) 20... Na5 $19 {[%emt 0:00:25]} 21. Qa4 {[%emt 0:00:22]} Rxc2 {[%emt 0:00:08]} 22. Qxc2 {[%emt 0:00:01]} Qxb6 {[%emt 0:00:04]} 23. Ne5 {[%emt 0:00:03] Black must now prevent Nd7.} Bxe5 {[%emt 0:00:11]} 24. Qc8+ {[%emt 0:00:02]} Qd8 {[%emt 0:00:02]} 25. Qxd8+ {[%emt 0:00:02]} Rxd8 {[%emt 0:00:01]} 26. Bxh5 {[%emt 0:00:01]} Bd6 {[%emt 0:00:03]} 27. Be2 {[%emt 0:00:05]} Nc6 {[%emt 0:00:03]} 28. Bxa6 {[%emt 0:00:02]} bxa6 {[%emt 0:00:02]} 29. Rxc6 {[%emt 0:00:01][%mdl 4096] Endgame KRB-KR} g6 {[%emt 0:00:08]} (29... a5 $142 {Threatens to win with ...Kf8.} 30. Kf1 Kf8) 30. Rxa6 {[%emt 0:00:01]} Kg7 {[%emt 0:00:01]} (30... Kf8 $19 31. b4 Ke7) 31. b4 {[%emt 0:00:02] [#]} Be7 {[%emt 0:00:01]} (31... e5 $142 $1 32. Kf1 exd4 33. exd4 Be7) 32. Rc6 {[%emt 0:00:03]} (32. b5 $17 {was worth a try.}) 32... Ra8 {[%emt 0:00:01]} 33. Rc7 {[%emt 0:00:03]} Bd6 {[%emt 0:00:03]} 34. Rc6 {[%emt 0:00:01]} Be7 {[%emt 0:00:01]} 35. Rc7 $1 {[%emt 0:00:01]} Bd6 {[%emt 0:00:02]} 36. Rc6 {[%emt 0:00:01]} Be7 {[%emt 0:00:06]} 37. Rc7 $1 {[%emt 0:00:00]} Bd6 $2 {[%emt 0:00:01] Weighted Error Value: White=0.31/Black=0.46} (37... Kf6 $19 38. g4 h6) 1/2-1/2

[Event "Women Accentus DAQ Blitz 2022"]
[Site "Biel"]
[Date "2022.07.17"]
[Round "12.3"]
[White "Zhuang, Yongzhe"]
[Black "Moracchini, Margaux"]
[Result "0-1"]
[ECO "B14"]
[WhiteElo "1838"]
[BlackElo "1937"]
[Annotator "TA"]
[PlyCount "100"]
[EventDate "2022.07.17"]
[EventType "tourn"]
[EventCountry "SUI"]
[SourceTitle "playchess.com"]
[Source "ChessBase"]
[SourceQuality "1"]
[TimeControl "180+2"]

{[%evp 19,100,27,11,0,38,34,26,25,34,27,22,0,0,0,0,-14,13,-14,0,0,0,0,0,0,0,-63,14,-8,-4,-17,0,0,0,-14,10,14,12,10,18,15,23,21,24,-3,0,-6,249,19,36,-11,-26,-26,6,6,15,0,0,-119,-12,-12,-12,-16,-16,-14,-21,-39,-39,-102,-71,-183,-186,-227,-102,-102,0,-134,-131,-377,8,-297,-102,-102,-91]} 1. e4 {[%emt 0:00:02]} c5 {[%emt 0:00:01]} 2. c3 {[%emt 0:00:01]} g6 {[%emt 0:00:03]} 3. d4 {[%emt 0:00:02]} cxd4 {[%emt 0:00:01]} 4. cxd4 {[%emt 0:00:02]} d5 {[%emt 0:00:01]} 5. exd5 {[%emt 0:00:02]} Nf6 {[%emt 0:00:04]} 6. Nf3 {[%emt 0:00:03]} Bg7 {[%emt 0:00:03]} 7. Nc3 {[%emt 0:00:01]} O-O {[%emt 0:00:10]} 8. Bc4 {[%emt 0:00:06]} Nbd7 {[%emt 0:00:03][%cal Bb8d7,Bd7b6,Bb6c4][%mdl 32]} 9. O-O {[%emt 0:00:05]} Nb6 {[%emt 0:00:01]} 10. Bb3 {[%emt 0:00:01]} Nfxd5 {[%emt 0:00:07]} 11. h3 {[%emt 0:00:04] is the legacy move (11.Re1). B14: Caro-Kann: Panov-Botvinnik Attack with 5...e6 and 5...g6.} Bf5 {[%emt 0:00:33]} 12. Re1 {[%emt 0:00:17]} Rc8 {[%emt 0:00:04]} 13. Bd2 {[%emt 0:00:10] White has an edge.} Nxc3 {[%emt 0:00:25]} 14. bxc3 {[%emt 0:00:02]} Nc4 {[%emt 0:00:10] [#]} 15. Bg5 $146 {[%emt 0:00:08]} ({Predecessor:} 15. Bxc4 Rxc4 16. Qe2 Rc7 17. Rac1 Qd5 18. Bf4 Rcc8 19. Qxe7 Bxh3 20. c4 {1-0 (46) Paci,P (1566)-Cellini,F (1527) Porto Sant Elpidio 2006}) 15... Re8 {[%emt 0:00:11]} 16. Qe2 {[%emt 0:00:05][%csl LRc4,LRe7]} Be6 {[%emt 0:00:05][%cal Bf5e6,Be6d5,Bd5b7][%mdl 32]} 17. Rad1 {[%emt 0:00:05]} h6 {[%emt 0:00:26]} 18. Bc1 {[%emt 0:00:03]} Bd5 {[%emt 0:00:06]} 19. Ne5 {[%emt 0:00:34][%cal Re5c4]} b5 {[%emt 0:00:01]} 20. a4 {[%emt 0:00:13]} a6 {[%emt 0:00:12]} 21. axb5 {[%emt 0:00:05]} axb5 {[%emt 0:00:00]} 22. Nd3 {[%emt 0:00:04]} (22. Bxc4 $11 Bxc4 23. Nxc4 Rxc4 24. Rd3) 22... Qc7 {[%emt 0:00:06]} (22... Nb6 $1 $15 23. Qb2 Na4 24. Bxa4 bxa4) 23. Nb4 {[%emt 0:00:02]} Bb7 {[%emt 0:00:17]} 24. Qg4 {[%emt 0:00:45]} e6 {[%emt 0:00:06]} 25. Bf4 {[%emt 0:00:04]} Qb6 {[%emt 0:00:11]} 26. Qg3 {[%emt 0:00:14]} Na5 {[%emt 0:00:07]} 27. Bc2 {[%emt 0:00:05]} Nc4 {[%emt 0:00:04]} 28. Bd3 {[%emt 0:00:03]} Nb2 {[%emt 0:00:01]} 29. Rc1 {[%emt 0:00:04]} Nxd3 {[%emt 0:00:01]} 30. Nxd3 {[%emt 0:00:02]} Bd5 {[%emt 0:00:01]} 31. Ne5 {[%emt 0:00:02]} Qb7 {[%emt 0:00:06]} 32. Ng4 {[%emt 0:00:03]} Kh7 {[%emt 0:00:02][%mdl 8192] [#]} (32... h5 $11 {and Black stays safe.} 33. Ne3 b4) 33. Be5 $2 {[%emt 0:00:02]} ({Only move:} 33. Bxh6 $1 $18 {[%mdl 512]} Qe7 (33... Rf8 34. Bxg7) 34. Bxg7 Kxg7 35. Qe3) 33... f5 {[%emt 0:00:04]} 34. Nf6+ {[%emt 0:00:07]} (34. Bxg7 $14 {was preferrable.} fxg4 35. Be5) 34... Bxf6 $11 {[%emt 0:00:00]} 35. Bxf6 {[%emt 0:00:02]} Qc7 {[%emt 0:00:03]} 36. Be5 {[%emt 0:00:01]} Qf7 {[%emt 0:00:01]} 37. Rcd1 {[%emt 0:00:04]} g5 {[%emt 0:00:05]} 38. h4 {[%emt 0:00:09]} (38. Ra1 $11 {keeps the balance.}) 38... f4 {[%emt 0:00:03]} (38... gxh4 $17 39. Qe3 h3 40. Qxh3 Rg8) 39. Qd3+ {[%emt 0:00:05]} Qg6 {[%emt 0:00:03]} 40. hxg5 {[%emt 0:00:02]} Qxd3 {[%emt 0:00:01]} 41. Rxd3 {[%emt 0:00:02] Strongly threatening Rh3.} hxg5 {[%emt 0:00:01]} 42. Rh3+ {[%emt 0:00:01]} Kg6 {[%emt 0:00:01][%cal Of4f3]} 43. Rd3 {[%emt 0:00:07] Prevents f3.} (43. Rb1 $15) 43... Ra8 {[%emt 0:00:04]} 44. f3 {[%emt 0:00:02]} (44. Rdd1 $17) 44... Ra2 $19 {[%emt 0:00:01]} 45. Rdd1 {[%emt 0:00:02] [#]} Rc2 {[%emt 0:00:02]} (45... Rea8 $1 $19 {and Black stays clearly on top. ...Kh5 is the strong threat.} 46. Rb1 g4 47. Rxb5 (47. Bxf4 $2 gxf3 48. gxf3 Kf5 $19) 47... Rc2) 46. Rc1 $17 {[%emt 0:00:03]} Ra2 {[%emt 0:00:03] Black is more active.} ({Black should play} 46... Rd2 $17) 47. Bd6 {[%emt 0:00:03]} (47. Rcd1 $1 $11 {was the only way to keep the balance.}) 47... Rea8 {[%emt 0:00:02][%cal Og5g4] Threatens to win with ...g4!} 48. Bb4 $2 {[%emt 0:00:01]} (48. Rb1 $17 {was necessary.}) 48... Rd2 $2 {[%emt 0:00:05]} ({Better is} 48... g4 $1 $19 {[%cal Rg4f3]} 49. c4 bxc4) 49. Kh1 $2 {[%emt 0:00:08][%mdl 8192] [#]} (49. c4 $1 $11 {and White has nothing to worry.} Rxd4 50. cxd5 Rxb4 51. Rxe6+ Kh5 52. d6) 49... Rh8+ $2 {[%emt 0:00:02]} (49... Rb2 $1 $19 {has better winning chances.} 50. Rb1 Rc2) 50. Kg1 {[%emt 0:00:02][%cal Oc3c4]} Rb2 {[%emt 0:00:02] Weighted Error Value: White=0.52/Black=0.55} 0-1